[Event "AUT-ch U16 Boys 2022"]
[Site "Sankt Veit an der Glan"]
[Date "2022.04.10"]
[Round "2"]
[White "Gschiel, Alexander"]
[Black "Hengl, Philip"]
[Result "0-1"]
[ECO "E11"]
[WhiteElo "2109"]
[BlackElo "1973"]
[Annotator "NA RC"]
[PlyCount "76"]
[EventDate "2022.04.11"]
[EventType "swiss"]
[EventCountry "AUT"]
[SourceTitle "playchess.com"]
[Source "ChessBase"]
[SourceQuality "1"]
[TimeControl "5400+30"]

1. d4 {[%emt 0:00:05]} d5 {[%emt 0:00:22]} 2. c4 {[%emt 0:00:11]} e6 {[%emt 0:00:05]} 3. Nf3 {[%emt 0:00:11]} Nf6 {[%emt 0:00:07]} 4. g3 {[%emt 0:00:12]} Bb4+ {[%emt 0:00:31]} 5. Bd2 {[%emt 0:01:07]} Be7 {[%emt 0:00:15]} 6. Bg2 {[%emt 0:00:29]} O-O {[%emt 0:00:17]} 7. O-O {[%emt 0:01:00]} Nbd7 {[%emt 0:00:19]} 8. b3 {[%emt 0:01:52]} Ne4 {[%emt 0:02:38]} 9. Nc3 {[%emt 0:01:11]} Nxd2 {[%emt 0:21:27]} 10. Nxd2 {[%emt 0:05:31]} c6 {[%emt 0:07:02]} 11. Qc2 {[%emt 0:05:40]} f5 {[%emt 0:02:54]} 12. e3 {[%emt 0:04:08]} g5 {[%emt 0:03:39]} 13. h3 {[%emt 0:05:17]} Nf6 {[%emt 0:08:06]} 14. Nf3 {[%emt 0:06:33]} h6 {[%emt 0:17:37]} 15. g4 {[%emt 0:05:53]} Kg7 {[%emt 0:11:45]} 16. Ne5 {[%emt 0:09:36]} Nd7 {[%emt 0:00:38]} 17. Ne2 {[%emt 0:05:32]} Nxe5 {[%emt 0:03:38]} 18. dxe5 {[%emt 0:00:02]} f4 {[%emt 0:00:36]} 19. Nd4 {[%emt 0:08:49]} Bd7 {[%emt 0:01:49]} 20. cxd5 {[%emt 0:04:15]} cxd5 {[%emt 0:00:31]} 21. e4 {[%emt 0:01:30]} Qb6 {[%emt 0:01:28]} 22. Rad1 {[%emt 0:07:12]} Bc5 {[%emt 0:00:10]} 23. Nf5+ {[%emt 0:03:30]} exf5 {[%emt 0:01:18]} 24. Rxd5 {[%emt 0:00:02]} Bc6 {[%emt 0:01:15]} 25. Rxc5 {[%emt 0:03:11]} fxe4 {[%emt 0:00:11]} 26. Qc3 {[%emt 0:01:29]} f3 {[%emt 0:01:14]} 27. e6+ {[%emt 0:00:25]} Kg6 {[%emt 0:01:09]} 28. Bh1 {[%emt 0:01:21]} Rae8 {[%emt 0:02:09]} 29. Qe5 {[%emt 0:02:34]} Re7 {[%emt 0:01:33]} 30. h4 {[%emt 0:01:19]} Qc7 {[%emt 0:00:41]} 31. Qd4 {[%emt 0:07:56]} Qf4 {[%emt 0:01:09]} 32. Re1 {[%emt 0:03:59]} Qxg4+ {[%emt 0:00:08]} 33. Kh2 {[%emt 0:00:06]} Qxh4+ {[%emt 0:00:12]} 34. Kg1 {[%emt 0:00:05]} Rf4 {[%emt 0:00:18]} 35. Bxf3 {[%emt 0:01:14]} exf3 {[%emt 0:01:19]} 36. Qd3+ {[%emt 0:00:14]} Be4 {[%emt 0:00:49]} 37. Rxe4 {[%emt 0:00:07]} Qg4+ {[%emt 0:00:27]} 38. Kf1 {[%emt 0:00:05]} Rxe4 {[%emt 0:00:06]} 0-1

[Event "AUT-ch U16 Boys 2022"]
[Site "Sankt Veit an der Glan"]
[Date "2022.04.10"]
[Round "2"]
[White "Hofstadler, Mario"]
[Black "Zaytsev, Alexander"]
[Result "1-0"]
[ECO "E01"]
[WhiteElo "2090"]
[BlackElo "1837"]
[Annotator "NA RC"]
[PlyCount "241"]
[EventDate "2022.04.11"]
[EventType "swiss"]
[EventCountry "AUT"]
[SourceTitle "playchess.com"]
[Source "ChessBase"]
[SourceQuality "1"]
[TimeControl "5400+30"]

1. d4 {[%emt 0:00:43]} d5 {[%emt 0:00:06]} 2. c4 {[%emt 0:00:25]} c6 {[%emt 0:00:14]} 3. Nf3 {[%emt 0:00:44]} Nf6 {[%emt 0:00:08]} 4. Nc3 {[%emt 0:01:46]} e6 {[%emt 0:00:10]} 5. g3 {[%emt 0:00:35]} dxc4 {[%emt 0:00:33]} 6. a4 {[%emt 0:01:34]} Nbd7 {[%emt 0:01:05]} 7. Bg2 {[%emt 0:01:16]} Bb4 {[%emt 0:04:42]} 8. O-O {[%emt 0:00:51]} O-O {[%emt 0:00:32]} 9. Qc2 {[%emt 0:04:46]} Qe7 {[%emt 0:04:26]} 10. Na2 {[%emt 0:07:49]} Bd6 {[%emt 0:08:59]} 11. Qxc4 {[%emt 0:11:53]} e5 {[%emt 0:03:45]} 12. Qc2 {[%emt 0:05:10]} exd4 {[%emt 0:07:25]} 13. Nxd4 {[%emt 0:00:37]} Nb6 {[%emt 0:05:36]} 14. Nc3 {[%emt 0:08:41]} Bc5 {[%emt 0:08:58]} 15. Nf5 {[%emt 0:06:33]} Bxf5 {[%emt 0:07:43]} 16. Qxf5 {[%emt 0:00:47]} h6 {[%emt 0:00:48]} 17. a5 {[%emt 0:13:37]} Nbd5 {[%emt 0:07:35]} 18. Nxd5 {[%emt 0:01:05]} Nxd5 {[%emt 0:02:43]} 19. Be4 {[%emt 0:01:15]} Nf6 {[%emt 0:05:35]} 20. Bd3 {[%emt 0:03:08]} Bd6 {[%emt 0:03:33]} 21. a6 {[%emt 0:07:08]} b6 {[%emt 0:00:50]} 22. Ra4 {[%emt 0:04:10]} Qe5 {[%emt 0:03:42]} 23. Qf3 {[%emt 0:01:17]} Qd5 {[%emt 0:01:55]} 24. Qxd5 {[%emt 0:03:07]} Nxd5 {[%emt 0:00:00]} 25. Rd1 {[%emt 0:01:31]} Be5 {[%emt 0:07:42]} 26. Be4 {[%emt 0:01:09]} Rad8 {[%emt 0:02:17]} 27. Rc4 {[%emt 0:02:19]} Rc8 {[%emt 0:08:36]} 28. Bxd5 {[%emt 0:05:36]} cxd5 {[%emt 0:00:07]} 29. Rxc8 {[%emt 0:00:17]} Rxc8 {[%emt 0:00:03]} 30. Be3 {[%emt 0:00:11]} Bxb2 {[%emt 0:02:48]} 31. Rxd5 {[%emt 0:00:39]} Rc7 {[%emt 0:02:35]} 32. Rd8+ {[%emt 0:01:34]} Kh7 {[%emt 0:00:01]} 33. Bf4 {[%emt 0:01:08]} Re7 {[%emt 0:00:12]} 34. Kf1 {[%emt 0:01:42]} Ba3 {[%emt 0:00:39]} 35. Rb8 {[%emt 0:01:08]} Kg6 {[%emt 0:01:14]} 36. Rb7 {[%emt 0:00:32]} Re6 {[%emt 0:00:41]} 37. Rxa7 {[%emt 0:00:32]} b5 {[%emt 0:00:02]} 38. Be3 {[%emt 0:00:15]} Rc6 {[%emt 0:00:57]} 39. Ra8 {[%emt 0:00:20]} Bc5 {[%emt 0:00:17]} 40. Bxc5 {[%emt 0:00:38]} Rxc5 {[%emt 0:00:01]} 41. Rb8 {[%emt 0:01:58]} Rc1+ {[%emt 0:00:01]} 42. Kg2 {[%emt 0:00:07]} Ra1 {[%emt 0:00:12]} 43. Rb6+ {[%emt 0:00:23]} Kh7 {[%emt 0:00:07]} 44. Rb7 {[%emt 0:00:52]} Kg6 {[%emt 0:01:17]} 45. Rb6+ {[%emt 0:00:16]} Kh7 {[%emt 0:00:10]} 46. Kf3 {[%emt 0:00:15]} b4 {[%emt 0:00:01]} 47. Ke3 {[%emt 0:00:33]} b3 {[%emt 0:00:06]} 48. h4 {[%emt 0:00:58]} b2 {[%emt 0:00:04]} 49. Rxb2 {[%emt 0:00:20]} Rxa6 {[%emt 0:00:06]} 50. h5 {[%emt 0:00:18]} g6 {[%emt 0:03:01]} 51. hxg6+ {[%emt 0:00:23]} Kxg6 {[%emt 0:00:06]} 52. Kf4 {[%emt 0:00:24]} Rf6+ {[%emt 0:00:23]} 53. Ke3 {[%emt 0:00:21]} Ra6 {[%emt 0:00:15]} 54. Rb4 {[%emt 0:00:55]} Ra3+ {[%emt 0:00:23]} 55. Kf4 {[%emt 0:00:26]} Ra2 {[%emt 0:00:08]} 56. Re4 {[%emt 0:00:27]} Rb2 {[%emt 0:00:09]} 57. f3 {[%emt 0:00:15]} Ra2 {[%emt 0:00:20]} 58. g4 {[%emt 0:00:43]} Rb2 {[%emt 0:00:20]} 59. Re5 {[%emt 0:00:38]} Rb4+ {[%emt 0:02:08]} 60. e4 {[%emt 0:00:15]} Ra4 {[%emt 0:00:22]} 61. Re8 {[%emt 0:00:36]} Rb4 {[%emt 0:01:23]} 62. Ra8 {[%emt 0:00:19]} Rc4 {[%emt 0:00:24]} 63. Rb8 {[%emt 0:00:08]} Ra4 {[%emt 0:00:06]} 64. Kg3 {[%emt 0:00:07]} Ra6 {[%emt 0:00:52]} 65. Rg8+ {[%emt 0:00:20]} Kh7 {[%emt 0:00:11]} 66. Rc8 {[%emt 0:00:05]} Kg6 {[%emt 0:00:06]} 67. Kf4 {[%emt 0:01:17]} Ra4 {[%emt 0:00:58]} 68. Rd8 {[%emt 0:00:12]} Rb4 {[%emt 0:00:27]} 69. Ke5 {[%emt 0:00:56]} Rb5+ {[%emt 0:00:59]} 70. Kf4 {[%emt 0:01:22]} Rb4 {[%emt 0:00:12]} 71. Rd6+ {[%emt 0:00:44]} Kg7 {[%emt 0:00:47]} 72. Kf5 {[%emt 0:00:19]} Rb5+ {[%emt 0:00:34]} 73. e5 {[%emt 0:00:12]} Rb3 {[%emt 0:00:31]} 74. Kf4 {[%emt 0:00:19]} Rb4+ {[%emt 0:00:12]} 75. Kf5 {[%emt 0:00:05]} Rb3 {[%emt 0:00:05]} 76. f4 {[%emt 0:00:04]} Rb5 {[%emt 0:00:16]} 77. Ke4 {[%emt 0:00:11]} Rb4+ {[%emt 0:00:13]} 78. Kf5 {[%emt 0:00:34]} Rb5 {[%emt 0:00:27]} 79. Ke4 {[%emt 0:00:06]} Rb4+ {[%emt 0:00:04]} 80. Rd4 {[%emt 0:00:36]} Rb6 {[%emt 0:00:15]} 81. Rd5 {[%emt 0:02:27]} Rb4+ {[%emt 0:00:24]} 82. Kf5 {[%emt 0:00:36]} Rb6 {[%emt 0:00:42]} 83. Rd6 {[%emt 0:00:22]} Rb4 {[%emt 0:01:07]} 84. e6 {[%emt 0:00:35]} Rb5+ {[%emt 0:00:46]} 85. Ke4 {[%emt 0:00:12]} Rb4+ {[%emt 0:01:21]} 86. Kf3 {[%emt 0:00:33]} Rb3+ {[%emt 0:00:12]} 87. Kf2 {[%emt 0:00:33]} Rb2+ {[%emt 0:00:06]} 88. Kg3 {[%emt 0:00:10]} Rb3+ {[%emt 0:00:25]} 89. Kh4 {[%emt 0:00:21]} fxe6 {[%emt 0:00:03]} 90. Rxe6 {[%emt 0:00:15]} Rb1 {[%emt 0:00:44]} 91. Kg3 {[%emt 0:00:22]} Rb3+ {[%emt 0:00:14]} 92. Kf2 {[%emt 0:00:23]} Ra3 {[%emt 0:00:44]} 93. Re3 {[%emt 0:00:09]} Ra4 {[%emt 0:00:46]} 94. Kf3 {[%emt 0:00:20]} Kf6 {[%emt 0:00:11]} 95. Rd3 {[%emt 0:00:23]} Rb4 {[%emt 0:00:53]} 96. Rd6+ {[%emt 0:00:28]} Kg7 {[%emt 0:00:04]} 97. Ke3 {[%emt 0:00:55]} Ra4 {[%emt 0:00:15]} 98. Rd4 {[%emt 0:00:18]} Ra3+ {[%emt 0:01:12]} 99. Ke4 {[%emt 0:00:32]} Ra5 {[%emt 0:00:32]} 100. Rd5 {[%emt 0:00:11]} Ra6 {[%emt 0:00:35]} 101. Ke5 {[%emt 0:00:07]} Ra4 {[%emt 0:00:48]} 102. Rd7+ {[%emt 0:00:21]} Kg8 {[%emt 0:00:57]} 103. Kf5 {[%emt 0:00:45]} Ra5+ {[%emt 0:00:21]} 104. Ke6 {[%emt 0:01:39]} Ra4 {[%emt 0:00:34]} 105. f5 {[%emt 0:01:02]} Rxg4 {[%emt 0:00:21]} 106. Rd8+ {[%emt 0:00:04]} Kh7 {[%emt 0:00:32]} 107. f6 {[%emt 0:00:12]} Re4+ {[%emt 0:00:17]} 108. Kf5 {[%emt 0:00:25]} Re1 {[%emt 0:00:20]} 109. f7 {[%emt 0:00:54]} Rf1+ {[%emt 0:00:02]} 110. Ke6 {[%emt 0:00:06]} Re1+ {[%emt 0:00:34]} 111. Kd6 {[%emt 0:00:26]} Rd1+ {[%emt 0:00:24]} 112. Kc7 {[%emt 0:00:10]} Rc1+ {[%emt 0:00:13]} 113. Kb6 {[%emt 0:00:08]} Rb1+ {[%emt 0:00:44]} 114. Kc5 {[%emt 0:00:09]} Rc1+ {[%emt 0:00:02]} 115. Kb4 {[%emt 0:00:08]} Rb1+ {[%emt 0:00:02]} 116. Kc3 {[%emt 0:00:09]} Rc1+ {[%emt 0:00:03]} 117. Kb2 {[%emt 0:00:06]} Rf1 {[%emt 0:00:09]} 118. f8=Q {[%emt 0:00:07]} Rxf8 {[%emt 0:00:02]} 119. Rxf8 {[%emt 0:00:08]} h5 {[%emt 0:00:04]} 120. Kc2 {[%emt 0:00:15]} Kg6 {[%emt 0:00:02]} 121. Kd2 {[%emt 0:00:20]} 1-0

[Event "AUT-ch U16 Boys 2022"]
[Site "Sankt Veit an der Glan"]
[Date "2022.04.10"]
[Round "2"]
[White "Wendl, Philipp"]
[Black "Lerch, Johannes"]
[Result "1/2-1/2"]
[ECO "C54"]
[WhiteElo "2000"]
[BlackElo "2229"]
[Annotator "RC"]
[PlyCount "76"]
[EventDate "2022.04.11"]
[EventType "swiss"]
[EventCountry "AUT"]
[SourceTitle "playchess.com"]
[Source "ChessBase"]
[SourceQuality "1"]
[TimeControl "5400+30"]

1. e4 {[%emt 0:00:03]} e5 {[%emt 0:00:05]} 2. Nf3 {[%emt 0:00:04]} Nc6 {[%emt 0:00:04]} 3. Bc4 {[%emt 0:00:04]} Bc5 {[%emt 0:00:05]} 4. c3 {[%emt 0:00:05]} Nf6 {[%emt 0:00:04]} 5. d4 {[%emt 0:00:03]} exd4 {[%emt 0:00:05]} 6. e5 {[%emt 0:00:04]} d5 {[%emt 0:00:05]} 7. Bb5 {[%emt 0:00:04]} Ne4 {[%emt 0:00:06]} 8. cxd4 {[%emt 0:00:03]} Bb6 {[%emt 0:00:04]} 9. Nc3 {[%emt 0:00:05]} O-O {[%emt 0:00:08]} 10. Be3 {[%emt 0:00:04]} Bd7 {[%emt 0:00:04]} 11. Bd3 {[%emt 0:17:18]} Bg4 {[%emt 0:00:32]} 12. Qb3 {[%emt 0:03:40]} Nxc3 {[%emt 0:06:23]} 13. bxc3 {[%emt 0:00:49]} Ne7 {[%emt 0:08:42]} 14. Qc2 {[%emt 0:06:41]} h6 {[%emt 0:04:31]} 15. h3 {[%emt 0:03:37]} Be6 {[%emt 0:00:56]} 16. Nh4 {[%emt 0:05:08]} f6 {[%emt 0:07:09]} 17. Bh7+ {[%emt 0:01:21]} Kh8 {[%emt 0:00:09]} 18. f4 {[%emt 0:26:20]} fxe5 {[%emt 0:12:33]} 19. fxe5 {[%emt 0:00:38]} Ba5 {[%emt 0:06:26]} 20. Bd3 {[%emt 0:06:13]} c5 {[%emt 0:05:03]} 21. Ke2 {[%emt 0:09:15]} cxd4 {[%emt 0:08:10]} 22. Bxd4 {[%emt 0:00:53]} Rc8 {[%emt 0:00:44]} 23. Qb2 {[%emt 0:03:17]} Qc7 {[%emt 0:02:30]} 24. Rhf1 {[%emt 0:01:28]} Kg8 {[%emt 0:02:18]} 25. Rxf8+ {[%emt 0:01:33]} Rxf8 {[%emt 0:00:54]} 26. Qc2 {[%emt 0:00:21]} a6 {[%emt 0:15:27]} 27. Bh7+ {[%emt 0:01:26]} Kh8 {[%emt 0:00:04]} 28. Bd3 {[%emt 0:00:14]} Qc8 {[%emt 0:03:46]} 29. Rc1 {[%emt 0:05:08]} Qe8 {[%emt 0:04:49]} 30. Bg6 {[%emt 0:00:35]} Qc8 {[%emt 0:05:08]} 31. Bd3 {[%emt 0:00:25]} Qc6 {[%emt 0:03:48]} 32. Qb2 {[%emt 0:02:45]} Kg8 {[%emt 0:00:44]} 33. Qc2 {[%emt 0:01:07]} Bc7 {[%emt 0:00:50]} 34. Bh7+ {[%emt 0:00:39]} Kh8 {[%emt 0:00:02]} 35. Bd3 {[%emt 0:00:16]} Kg8 {[%emt 0:00:07]} 36. Bh7+ {[%emt 0:00:04]} Kh8 {[%emt 0:00:36]} 37. Bd3 {[%emt 0:00:05]} Qe8 {[%emt 0:03:02]} 38. g4 {[%emt 0:01:20]} Qc6 {[%emt 0:01:58]} 1/2-1/2

[Event "AUT-ch U16 Boys 2022"]
[Site "Sankt Veit an der Glan"]
[Date "2022.04.10"]
[Round "2"]
[White "Kuti, Oliver"]
[Black "Wagner, Leopold Franziskus"]
[Result "1/2-1/2"]
[ECO "B11"]
[WhiteElo "1970"]
[BlackElo "2061"]
[Annotator "NA RC"]
[PlyCount "115"]
[EventDate "2022.04.11"]
[EventType "swiss"]
[EventCountry "AUT"]
[SourceTitle "playchess.com"]
[Source "ChessBase"]
[SourceQuality "1"]
[TimeControl "5400+30"]

1. e4 {[%emt 0:00:04]} c6 {[%emt 0:00:01]} 2. Nc3 {[%emt 0:00:05]} d5 {[%emt 0:00:12]} 3. Nf3 {[%emt 0:02:04]} dxe4 {[%emt 0:01:49]} 4. Nxe4 {[%emt 0:00:03]} Nf6 {[%emt 0:00:36]} 5. Qe2 {[%emt 0:00:19]} Nxe4 {[%emt 0:01:05]} 6. Qxe4 {[%emt 0:00:03]} Nd7 {[%emt 0:01:25]} 7. Bc4 {[%emt 0:00:13]} Nf6 {[%emt 0:00:27]} 8. Ne5 {[%emt 0:00:16]} e6 {[%emt 0:00:16]} 9. Qe2 {[%emt 0:00:09]} b5 {[%emt 0:00:04]} 10. Bb3 {[%emt 0:01:06]} Qc7 {[%emt 0:01:12]} 11. O-O {[%emt 0:00:51]} Bd6 {[%emt 0:00:53]} 12. d4 {[%emt 0:00:18]} O-O {[%emt 0:00:09]} 13. Bf4 {[%emt 0:01:08]} a6 {[%emt 0:01:23]} 14. Rad1 {[%emt 0:03:23]} Bb7 {[%emt 0:00:31]} 15. Rfe1 {[%emt 0:08:40]} c5 {[%emt 0:01:50]} 16. dxc5 {[%emt 0:01:15]} Qxc5 {[%emt 0:00:11]} 17. Nd7 {[%emt 0:05:55]} Nxd7 {[%emt 0:07:13]} 18. Bxd6 {[%emt 0:02:29]} Qc6 {[%emt 0:00:05]} 19. Qg4 {[%emt 0:03:16]} Rfe8 {[%emt 0:00:56]} 20. Qg3 {[%emt 0:13:59]} Rad8 {[%emt 0:13:09]} 21. Bb4 {[%emt 0:10:51]} Nf8 {[%emt 0:14:31]} 22. Bc3 {[%emt 0:03:55]} Ng6 {[%emt 0:00:24]} 23. Rxd8 {[%emt 0:03:44]} Rxd8 {[%emt 0:00:02]} 24. h4 {[%emt 0:00:25]} b4 {[%emt 0:02:29]} 25. Be5 {[%emt 0:11:08]} Nxe5 {[%emt 0:01:43]} 26. Rxe5 {[%emt 0:00:13]} h6 {[%emt 0:13:21]} 27. Re3 {[%emt 0:05:41]} Rd1+ {[%emt 0:01:49]} 28. Kh2 {[%emt 0:00:05]} Rd4 {[%emt 0:01:04]} 29. Kg1 {[%emt 0:02:52]} h5 {[%emt 0:09:40]} 30. Ba4 {[%emt 0:03:24]} Qd5 {[%emt 0:08:30]} 31. Re5 {[%emt 0:03:34]} Qd6 {[%emt 0:00:58]} 32. Rxh5 {[%emt 0:01:21]} Qxg3 {[%emt 0:00:25]} 33. fxg3 {[%emt 0:00:02]} f5 {[%emt 0:01:32]} 34. Bb3 {[%emt 0:01:33]} Kf7 {[%emt 0:04:03]} 35. Rxf5+ {[%emt 0:00:25]} Ke7 {[%emt 0:00:11]} 36. Rf2 {[%emt 0:01:12]} g6 {[%emt 0:01:42]} 37. Re2 {[%emt 0:01:14]} Bc8 {[%emt 0:03:16]} 38. Kf2 {[%emt 0:01:03]} Kf6 {[%emt 0:02:21]} 39. c3 {[%emt 0:02:35]} bxc3 {[%emt 0:00:22]} 40. bxc3 {[%emt 0:00:02]} Rd3 {[%emt 0:00:28]} 41. c4 {[%emt 0:00:46]} e5 {[%emt 0:00:43]} 42. c5 {[%emt 0:00:35]} Bg4 {[%emt 0:01:20]} 43. Rc2 {[%emt 0:01:28]} e4 {[%emt 0:00:22]} 44. Rc1 {[%emt 0:00:17]} e3+ {[%emt 0:00:32]} 45. Ke1 {[%emt 0:00:33]} Ke5 {[%emt 0:04:32]} 46. Bd1 {[%emt 0:01:19]} Bxd1 {[%emt 0:00:48]} 47. Rxd1 {[%emt 0:00:07]} Rc3 {[%emt 0:00:30]} 48. Rd6 {[%emt 0:00:47]} Rxc5 {[%emt 0:00:00]} 49. Rxg6 {[%emt 0:00:22]} Rc2 {[%emt 0:00:06]} 50. Rxa6 {[%emt 0:01:05]} Rxg2 {[%emt 0:00:08]} 51. h5 {[%emt 0:01:52]} Rxg3 {[%emt 0:01:24]} 52. h6 {[%emt 0:00:50]} Rh3 {[%emt 0:00:13]} 53. Ke2 {[%emt 0:01:29]} Ke4 {[%emt 0:00:01]} 54. Ra4+ {[%emt 0:01:07]} Ke5 {[%emt 0:00:06]} 55. Rc4 {[%emt 0:02:17]} Rxh6 {[%emt 0:00:15]} 56. Kxe3 {[%emt 0:00:04]} Kd5 {[%emt 0:00:06]} 57. Rc2 {[%emt 0:00:34]} Rc6 {[%emt 0:00:04]} 58. Kd3 {[%emt 0:01:02]} 1/2-1/2

[Event "AUT-ch U16 Boys 2022"]
[Site "Sankt Veit an der Glan"]
[Date "2022.04.10"]
[Round "2"]
[White "Kienboeck, Benjamin"]
[Black "Borrmann, Laurenz"]
[Result "1/2-1/2"]
[ECO "C70"]
[WhiteElo "1900"]
[BlackElo "2232"]
[Annotator "RC"]
[PlyCount "92"]
[EventDate "2022.04.11"]
[EventType "swiss"]
[EventCountry "AUT"]
[SourceTitle "playchess.com"]
[Source "ChessBase"]
[SourceQuality "1"]
[TimeControl "5400+30"]

1. e4 {[%emt 0:00:05]} e5 {[%emt 0:00:12]} 2. Nf3 {[%emt 0:00:08]} Nc6 {[%emt 0:00:05]} 3. Bb5 {[%emt 0:00:08]} a6 {[%emt 0:00:12]} 4. Ba4 {[%emt 0:00:06]} g6 {[%emt 0:01:45]} 5. d4 {[%emt 0:02:47]} exd4 {[%emt 0:00:29]} 6. Nxd4 {[%emt 0:01:14]} Bg7 {[%emt 0:00:53]} 7. Nxc6 {[%emt 0:03:41]} bxc6 {[%emt 0:01:02]} 8. O-O {[%emt 0:00:39]} Ne7 {[%emt 0:01:28]} 9. Nc3 {[%emt 0:01:33]} O-O {[%emt 0:09:56]} 10. Bg5 {[%emt 0:04:21]} h6 {[%emt 0:10:50]} 11. Be3 {[%emt 0:03:43]} d6 {[%emt 0:00:42]} 12. Qd2 {[%emt 0:00:51]} Kh7 {[%emt 0:00:42]} 13. Rad1 {[%emt 0:08:58]} Bb7 {[%emt 0:01:02]} 14. Bb3 {[%emt 0:03:23]} c5 {[%emt 0:04:56]} 15. f4 {[%emt 0:05:44]} Nc6 {[%emt 0:11:58]} 16. Bd5 {[%emt 0:13:37]} Rb8 {[%emt 0:01:12]} 17. e5 {[%emt 0:03:03]} Qc8 {[%emt 0:14:04]} 18. Ne4 {[%emt 0:05:05]} Nb4 {[%emt 0:02:14]} 19. Bxb7 {[%emt 0:03:09]} Qxb7 {[%emt 0:00:05]} 20. Nf6+ {[%emt 0:00:13]} Bxf6 {[%emt 0:02:35]} 21. exf6 {[%emt 0:00:06]} Qe4 {[%emt 0:00:41]} 22. f5 {[%emt 0:06:16]} Qxc2 {[%emt 0:02:34]} 23. Qe1 {[%emt 0:01:29]} Rbe8 {[%emt 0:04:53]} 24. Qg3 {[%emt 0:04:17]} Qe4 {[%emt 0:03:08]} 25. Bc1 {[%emt 0:11:25]} Nxa2 {[%emt 0:02:56]} 26. Rde1 {[%emt 0:05:21]} Qd4+ {[%emt 0:00:44]} 27. Be3 {[%emt 0:00:12]} Qxf6 {[%emt 0:01:00]} 28. fxg6+ {[%emt 0:00:43]} Qxg6 {[%emt 0:00:12]} 29. Qh3 {[%emt 0:01:51]} Nb4 {[%emt 0:01:12]} 30. Bxh6 {[%emt 0:02:54]} Qxh6 {[%emt 0:03:17]} 31. Rxe8 {[%emt 0:00:34]} Qxh3 {[%emt 0:00:15]} 32. Rxf8 {[%emt 0:00:12]} Qe3+ {[%emt 0:00:35]} 33. Kh1 {[%emt 0:00:01]} Qe5 {[%emt 0:10:39]} 34. R8xf7+ {[%emt 0:00:10]} Kg6 {[%emt 0:01:53]} 35. R7f3 {[%emt 0:02:34]} Qxb2 {[%emt 0:00:03]} 36. Rg3+ {[%emt 0:01:41]} Kh5 {[%emt 0:00:19]} 37. Rh3+ {[%emt 0:00:08]} Kg4 {[%emt 0:00:03]} 38. Rg3+ {[%emt 0:00:07]} Kh4 {[%emt 0:00:04]} 39. Rh3+ {[%emt 0:00:04]} Kg4 {[%emt 0:00:03]} 40. Rg3+ {[%emt 0:01:13]} Kh5 {[%emt 0:00:08]} 41. Rh3+ {[%emt 0:00:05]} Kg5 {[%emt 0:00:07]} 42. Rg3+ {[%emt 0:00:03]} Kh6 {[%emt 0:00:08]} 43. Rh3+ {[%emt 0:00:01]} Kg6 {[%emt 0:00:08]} 44. Rg3+ {[%emt 0:00:00]} Kh6 {[%emt 0:00:06]} 45. Rh3+ {[%emt 0:00:09]} Kg7 {[%emt 0:00:04]} 46. Rg3+ {[%emt 0:00:07]} Kh6 {[%emt 0:00:23]} 1/2-1/2

[Event "AUT-ch U16 Boys 2022"]
[Site "Sankt Veit an der Glan"]
[Date "2022.04.10"]
[Round "2"]
[White "Gloessl, Sota Alexander"]
[Black "Elsaesser, Daniel"]
[Result "1/2-1/2"]
[ECO "B23"]
[WhiteElo "1887"]
[BlackElo "1571"]
[Annotator "NA RC"]
[PlyCount "97"]
[EventDate "2022.04.11"]
[EventType "swiss"]
[EventCountry "AUT"]
[SourceTitle "playchess.com"]
[Source "ChessBase"]
[SourceQuality "1"]
[TimeControl "5400+30"]

1. e4 {[%emt 0:00:04]} c5 {[%emt 0:00:04]} 2. Nc3 {[%emt 0:00:09]} g6 {[%emt 0:00:10]} 3. h4 {[%emt 0:00:10]} h5 {[%emt 0:01:32]} 4. Bc4 {[%emt 0:00:08]} Nc6 {[%emt 0:01:43]} 5. d3 {[%emt 0:04:46]} Nf6 {[%emt 0:02:30]} 6. Bg5 {[%emt 0:02:27]} Bg7 {[%emt 0:01:39]} 7. Qd2 {[%emt 0:03:20]} a6 {[%emt 0:02:18]} 8. Nf3 {[%emt 0:05:17]} b5 {[%emt 0:05:17]} 9. Bb3 {[%emt 0:00:02]} Ng4 {[%emt 0:03:06]} 10. a4 {[%emt 0:04:19]} b4 {[%emt 0:01:37]} 11. Nd1 {[%emt 0:00:19]} Qc7 {[%emt 0:04:17]} 12. Rb1 {[%emt 0:01:57]} Bb7 {[%emt 0:08:57]} 13. Bf4 {[%emt 0:04:23]} Nge5 {[%emt 0:04:00]} 14. Nxe5 {[%emt 0:08:52]} Bxe5 {[%emt 0:00:26]} 15. Bxe5 {[%emt 0:00:10]} Nxe5 {[%emt 0:00:52]} 16. Ne3 {[%emt 0:00:29]} e6 {[%emt 0:13:18]} 17. c3 {[%emt 0:05:06]} c4 {[%emt 0:02:31]} 18. Nxc4 {[%emt 0:01:03]} Nxc4 {[%emt 0:00:28]} 19. Bxc4 {[%emt 0:00:01]} Bxe4 {[%emt 0:01:31]} 20. dxe4 {[%emt 0:00:56]} Qxc4 {[%emt 0:00:17]} 21. Qd4 {[%emt 0:00:18]} Qxd4 {[%emt 0:00:24]} 22. cxd4 {[%emt 0:00:01]} Ke7 {[%emt 0:00:21]} 23. Kd2 {[%emt 0:00:32]} Rhc8 {[%emt 0:01:03]} 24. Rbc1 {[%emt 0:00:20]} d6 {[%emt 0:00:32]} 25. f3 {[%emt 0:07:35]} Rab8 {[%emt 0:02:03]} 26. g4 {[%emt 0:02:28]} Kd7 {[%emt 0:02:24]} 27. gxh5 {[%emt 0:01:30]} gxh5 {[%emt 0:00:13]} 28. Rxc8 {[%emt 0:00:56]} Rxc8 {[%emt 0:00:39]} 29. Rg1 {[%emt 0:00:11]} Ke7 {[%emt 0:01:46]} 30. Rg5 {[%emt 0:00:59]} b3 {[%emt 0:00:11]} 31. Rxh5 {[%emt 0:01:20]} Rc2+ {[%emt 0:00:11]} 32. Kd3 {[%emt 0:00:07]} Rxb2 {[%emt 0:00:12]} 33. Kc3 {[%emt 0:00:36]} Rf2 {[%emt 0:00:21]} 34. Kxb3 {[%emt 0:00:08]} Rxf3+ {[%emt 0:00:15]} 35. Kc4 {[%emt 0:00:31]} Rf4 {[%emt 0:00:22]} 36. Kd3 {[%emt 0:00:39]} f5 {[%emt 0:06:25]} 37. exf5 {[%emt 0:00:31]} exf5 {[%emt 0:00:10]} 38. Kc4 {[%emt 0:00:31]} a5 {[%emt 0:04:20]} 39. Kd5 {[%emt 0:00:38]} Rg4 {[%emt 0:00:27]} 40. Rh6 {[%emt 0:04:25]} f4 {[%emt 0:01:42]} 41. Re6+ {[%emt 0:02:21]} Kf7 {[%emt 0:00:23]} 42. Re4 {[%emt 0:02:05]} Rxh4 {[%emt 0:02:19]} 43. Kxd6 {[%emt 0:00:16]} Kf6 {[%emt 0:00:21]} 44. d5 {[%emt 0:00:28]} Kf5 {[%emt 0:01:03]} 45. Rc4 {[%emt 0:01:58]} Rh6+ {[%emt 0:01:00]} 46. Kc7 {[%emt 0:01:52]} Ke5 {[%emt 0:00:37]} 47. Rc5 {[%emt 0:00:40]} Rd6 {[%emt 0:01:27]} 48. Rxa5 {[%emt 0:00:57]} Rxd5 {[%emt 0:00:17]} 49. Rxd5+ {[%emt 0:00:10]} 1/2-1/2